bitfinex-derivatives/quotes_SOLF0:USTF0_20241025
["timestamp","ask_amount","ask_price","bid_price","bid_amount"]
[1729893888295,1.3217,168.18,168.13,4.82]
[1729893888296,15.61305679,168.18,168.13,4.82]
[1729893888497,15.61305679,168.18,168.14,4.82]
[1729893888800,2.9785,168.15,168.14,4.82]
[1729893891496,17.26985679,168.15,168.14,4.82]
[1729893892209,2.9785,168.15,168.14,4.82]
[1729893892502,12.13826624,168.15,168.14,4.82]
[1729893893296,2.9785,168.15,168.14,4.82]
[1729893893501,2.9784,168.16,168.14,4.82]
[1729893894198,9.15976624,168.17,168.14,4.82]
[1729893894403,2.9784,168.15,168.14,4.82]
[1729893895201,12.13816624,168.15,168.14,4.82]
[1729893896507,2.9792,168.11,168.07,9.15976624]
[1729893896712,9.15976624,168.12,168.08,4.82]
[1729893897209,2.9791,168.11,168.08,7.7995]
[1729893897706,12.13876624,168.12,168.08,7.7995]
[1729893898304,2.979,168.12,168.08,7.7995]
[1729893899105,1.2839,168.18,168.08,4.82]
[1729893899306,2.9786,168.14,168.08,4.82]
[1729893899711,2.9789,168.13,168.1,2.9792]
[1729893899899,14.29901736,168.17,168.08,4.82]
[1729893900306,2.9789,168.13,168.09,2.9794]
[1729893900811,14.29901736,168.17,168.09,2.9794]
[1729893901010,14.29901736,168.17,168.08,7.7996]
[1729893901613,14.29901736,168.15,168.08,4.82]
[1729893902006,2.9792,168.11,168.08,4.82]
[1729893903110,2.9794,168.1,168.08,4.82]
[1729893903309,14.29901736,168.15,168.05,57.9]
[1729893903511,14.29901736,168.13,168.06,7.8]
[1729893903707,2.9791,168.11,168.06,7.8]
[1729893903907,14.29901736,168.13,168.06,7.8]
[1729893904608,14.29901736,168.15,168.08,2.9796]
[1729893904806,14.29901736,168.15,168.06,4.82]
[1729893905011,14.29901736,168.15,168.05,72.19901736]
[1729893905307,14.29901736,168.15,168.06,4.82]
[1729893905712,2.9794,168.1,168.07,2.9798]
[1729893907311,14.29901736,168.15,168.06,4.82]
[1729893907614,14.29901736,168.12,168.07,4.82]
[1729893908517,2.9796,168.08,168.07,4.82]
[1729893909606,14.29901736,168.1,168.05,57.9]
[1729893909807,2.98,168.06,168.05,57.9]
[1729893910006,2.98,168.06,168.05,4.82]
[1729893911905,14.29901736,168.1,168.05,4.82]
[1729893912114,2.9799,168.07,168.05,4.82]
[1729893914522,14.29901736,168.1,168.05,4.82]
[1729893914818,2.9797,168.08,168.05,7.8]
[1729893915207,2.9799,168.07,168.05,4.82]
[1729893916611,2.9796,168.08,168.05,7.8]
[1729893916811,1.2803,168.11,168.05,4.82]
[1729893917519,2.9798,168.07,168.05,4.82]
[1729893917715,1.2803,168.11,168.05,4.82]
[1729893918013,2.9798,168.07,168.06,1.4903002]
[1729893918815,3.03168338,168.16,168.06,10.64451712]
[1729893919122,2.9793,168.11,168.08,12.13381692]
[1729893920820,9.15421692,168.12,168.08,9.15421692]
[1729893921020,1.2199,168.16,168.08,9.15421692]
[1729893921021,2.9788,168.13,168.08,9.15421692]
[1729893921422,9.15421692,168.14,168.08,9.15421692]
[1729893922017,2.9792,168.11,168.08,12.13381692]
[1729893924016,2.9789,168.13,168.1,9.15421692]
[1729893924328,9.15421692,168.16,168.11,13.91421692]
[1729893925122,2.9785,168.15,168.11,16.89321692]
[1729893926829,9.15421692,168.16,168.11,16.89321692]
[1729893926830,2.9786,168.14,168.11,16.89321692]
[1729893927525,2.9786,168.14,168.11,4.76]
[1729893927828,9.15421692,168.12,168.11,4.76]
[1729893928028,9.15421692,168.12,168.08,4.76]
[1729893928228,1.2839,168.18,168.08,4.76]
[1729893928229,9.15421692,168.09,168.08,4.76]
[1729893928721,9.15421692,168.09,168.07,4.76]
[1729893929025,9.15421692,168.08,168.07,4.76]
[1729893929227,12.13401692,168.08,168.07,4.76]
[1729893929825,9.15421692,168.08,168.0,10.45351692]
[1729893930020,12.13451692,168.05,168.01,9.23116099]
[1729893930225,9.15421692,168.04,168.02,1.49046099]
[1729893930429,12.13451692,168.04,168.03,4.76]
[1729893933224,3.8375,168.1,168.03,4.76]
[1729893933426,9.15421692,168.07,168.03,4.76]
[1729893934342,14.30845736,168.09,168.03,4.76]
[1729893934830,2.9803,168.05,168.03,4.76]
[1729893937770,2.9803,168.04,168.03,4.76]
[1729893939862,14.30845736,168.07,167.97,14.30845736]
[1729893940065,14.30845736,168.05,167.98,6.25075689]
[1729893940256,14.30845736,168.05,167.99,1.49075689]
[1729893940560,14.30845736,168.05,167.98,4.76]
[1729893940866,14.30845736,168.03,167.98,4.76]
[1729893941370,2.9812,167.99,167.98,4.76]
[1729893943673,2.9812,168.0,167.98,4.76]
[1729893943875,14.30845736,168.03,167.98,4.76]
[1729893945159,2.9812,167.99,167.98,4.76]
[1729893946675,2.9815,167.98,167.97,4.78]
[1729893948374,2.9818,167.97,167.95,57.88]
[1729893948676,14.30845736,168.01,167.95,4.78]
[1729893949074,2.9818,167.97,167.95,4.78]
[1729893950882,1.3289,168.03,167.95,4.78]
[1729893951083,1.3289,168.03,167.95,19.08845736]
[1729893951572,2.9812,168.0,167.96,2.9817]
[1729893954272,2.9812,168.0,167.97,9.16228957]
[1729893955973,9.16228957,168.0,167.95,13.94228957]
[1729893956575,2.9813,167.99,167.96,2.9817]
[1729893957562,2.9814,167.98,167.96,2.9817]
[1729893957797,9.16228957,167.99,167.95,7.7619]
[1729893959284,2.9815,167.98,167.95,7.7619]
[1729893959867,2.9815,167.98,167.95,2.9819]
[1729893960076,9.16228957,167.96,167.94,4.78]
[1729893960485,12.14428957,167.95,167.94,4.78]
[1729893961889,9.16228957,167.95,167.94,4.78]
[1729893963388,12.14418957,167.95,167.94,4.78]
[1729893969180,9.16228957,167.95,167.85,57.92]
[1729893969374,9.16228957,167.91,167.86,1.49146338]
[1729893969576,9.16228957,167.91,167.87,4.78]
[1729893970769,12.14508957,167.91,167.87,4.78]
[1729893971356,12.14508957,167.91,167.87,7.7632]
[1729893971550,9.16228957,167.88,167.85,4.78]
[1729893971746,9.16228957,167.86,167.85,4.78]
[1729893972151,9.16228957,167.86,167.83,2.984]
[1729893972452,9.16228957,167.86,167.84,4.78]
[1729893973258,9.16228957,167.86,167.84,7.7639]
[1729893975349,9.16228957,167.86,167.84,4.78]
[1729893975551,2.99471417,167.93,167.84,4.78]
[1729893975756,9.16228957,167.87,167.84,4.78]
[1729893975956,9.16228957,167.87,167.85,2.9837]
[1729893985463,9.16228957,167.87,167.86,2.9835]
[1729893986066,9.16228957,167.87,167.85,2.9837]
[1729893989166,9.16228957,167.87,167.84,7.7637]
[1729893989369,9.16228957,167.85,167.84,4.78]
[1729893992674,2.9833,167.88,167.84,7.6638]
[1729893992866,9.16228957,167.86,167.84,7.6638]
[1729893993061,9.16228957,167.86,167.84,4.68]
[1729893993267,2.9833,167.88,167.85,2.9837]
[1729893993466,12.14558957,167.88,167.85,2.9837]
[1729893994275,9.16228957,167.86,167.85,2.9837]
[1729893994779,9.16228957,167.86,167.84,4.68]
[1729893994965,9.16228957,167.86,167.84,7.6639]
[1729893995962,9.16228957,167.86,167.84,4.68]
[1729893996878,12.14598957,167.85,167.84,4.68]
[1729894000977,12.14598957,167.85,167.82,2.9842]
[1729894001175,2.9839,167.84,167.83,4.68]
[1729894001477,9.16228957,167.83,167.82,4.68]
[1729894004674,2.5503,167.92,167.82,4.68]
[1729894004980,9.16228957,167.85,167.82,4.68]
[1729894005584,9.16228957,167.84,167.82,4.68]
[1729894006379,2.5503,167.92,167.82,4.68]
[1729894006577,2.5503,167.92,167.82,13.84228957]
[1729894006771,9.16228957,167.87,167.85,2.9836]
[1729894011585,9.16228957,167.87,167.84,2.9838]
[1729894011876,9.16228957,167.87,167.82,13.84228957]
[1729894012081,9.16228957,167.92,167.87,2.9832]
[1729894012377,9.16228957,167.92,167.88,4.58]
[1729894012575,12.14478957,167.92,167.88,4.58]
[1729894012774,12.14478957,167.92,167.88,7.5631]
[1729894013972,2.5434,167.98,167.9,2.9828]
[1729894013973,9.16228957,167.93,167.9,2.9828]
[1729894014277,9.16228957,167.94,167.89,9.16228957]
[1729894015278,12.14438957,167.94,167.91,2.9826]
[1729894016076,9.16228957,167.94,167.91,2.9826]
[1729894017992,12.14448957,167.94,167.88,4.58]
[1729894018198,9.16228957,167.93,167.89,2.983]
[1729894019291,12.14478957,167.93,167.89,2.983]
[1729894020893,9.16228957,167.94,167.91,2.9826]
[1729894021286,9.16228957,167.94,167.89,9.16228957]
[1729894021690,2.5434,167.98,167.91,9.16228957]
[1729894021899,2.5434,167.98,167.88,4.58]
[1729894021900,9.16228957,167.97,167.92,9.16228957]
[1729894022096,9.16228957,167.98,167.93,13.74228957]
[1729894022390,9.16228957,167.98,167.93,4.58]
[1729894022590,9.16228957,167.96,167.89,2.6049]
[1729894022791,9.16228957,167.95,167.91,2.9827]
[1729894023594,12.14428957,167.95,167.91,2.9827]
[1729894023789,12.14428957,167.95,167.92,2.9825]
[1729894025303,2.9822,167.94,167.9,16.72498957]
[1729894025499,12.14448957,167.94,167.9,7.5627]
[1729894026403,2.9826,167.92,167.91,4.58]
[1729894026592,12.14488957,167.92,167.91,4.58]
[1729894027489,9.16228957,167.92,167.9,4.58]
[1729894027695,9.16228957,167.91,167.89,4.58]
[1729894029298,2.983,167.9,167.89,4.58]
[1729894035014,2.9833,167.88,167.87,4.58]
[1729894035201,12.14558957,167.88,167.87,6.07196138]
[1729894035698,12.14558957,167.88,167.87,1.49196138]
[1729894037905,9.16228957,167.91,167.87,1.49196138]
[1729894038105,9.16228957,167.91,167.86,7.5035]
[1729894038304,9.16228957,167.91,167.87,1.49196402]
[1729894038604,9.16228957,167.91,167.86,7.5035]
[1729894038809,2.9829,167.9,167.86,7.5035]
[1729894039107,3.6921,167.94,167.88,12.14538957]
[1729894039303,2.9826,167.92,167.88,9.16228957]
[1729894040211,2.9826,167.92,167.88,12.14538957]
[1729894042500,2.9826,167.92,167.88,9.16228957]
[1729894042811,2.9826,167.92,167.89,2.983]
[1729894043207,9.16228957,167.95,167.9,9.16228957]
[1729894043410,9.16228957,167.95,167.91,7.5025]
[1729894043706,9.16228957,167.95,167.91,4.52]
[1729894044304,2.9824,167.93,167.91,4.52]
[1729894044505,9.16228957,167.92,167.91,4.52]
[1729894045212,12.14478957,167.92,167.91,4.52]
[1729894045510,9.16228957,167.92,167.81,2.592]
[1729894045810,9.16228957,167.89,167.84,2.9839]
[1729894046010,9.16228957,167.89,167.85,1.49208699]
[1729894046212,2.9833,167.88,167.86,1.49208699]
[1729894046411,2.9833,167.88,167.87,4.52]
[1729894047712,2.9835,167.87,167.86,4.52]
[1729894048010,12.14578957,167.87,167.86,6.01215488]
[1729894048707,9.16228957,167.87,167.85,4.52]
[1729894048915,12.14588957,167.86,167.83,4.52]
[1729894049109,9.16228957,167.87,167.84,6.01239056]
[1729894049413,9.16228957,167.87,167.84,4.52]
[1729894050313,12.14568957,167.87,167.84,4.52]
[1729894054620,12.14598957,167.86,167.84,4.52]
[1729894054916,2.5012,167.93,167.84,4.52]
[1729894055127,9.16228957,167.86,167.84,4.52]
[1729894056317,9.16228957,167.88,167.84,4.52]
[1729894056622,2.9833,167.88,167.85,2.9837]
[1729894056823,9.16228957,167.9,167.85,9.16228957]
[1729894057019,9.16228957,167.9,167.87,2.9834]
[1729894057317,9.16228957,167.9,167.85,9.16228957]
[1729894057623,12.14528957,167.9,167.86,4.47566039]
[1729894057823,12.14528957,167.9,167.86,2.9835]
[1729894058216,9.16228957,167.9,167.87,2.9833]
[1729894058815,2.9827,167.91,167.87,12.14558957]
[1729894062621,12.14498957,167.91,167.87,12.14558957]
[1729894062816,9.16228957,167.91,167.85,9.16228957]
[1729894063020,9.16228957,167.89,167.86,4.47559811]
[1729894063217,9.16228957,167.89,167.86,2.9835]
[1729894064631,12.14538957,167.89,167.85,12.14598957]
[1729894064826,12.14538957,167.89,167.86,1.49212056]
[1729894065028,12.14538957,167.89,167.85,12.14598957]
[1729894065227,12.14538957,167.89,167.86,1.49212056]
[1729894065531,2.9828,167.91,167.87,2.9833]
[1729894065830,9.16228957,167.9,167.88,4.5]
[1729894067231,12.14518957,167.9,167.88,4.5]
[1729894068333,2.983,167.89,167.88,4.5]
[1729894070834,12.14528957,167.89,167.88,4.5]
[1729894074232,2.983,167.89,167.88,4.5]
[1729894074629,2.9829,167.9,167.88,4.5]
[1729894075836,2.983,167.89,167.88,4.5]
[1729894081443,1.2937,167.94,167.88,4.5]
[1729894081642,9.16228957,167.92,167.88,4.5]
[1729894081947,2.983,167.9,167.88,4.5]
[1729894083342,62.16618556,168.01,167.88,13.66228957]
[1729894083546,2.9826,167.92,167.9,9.16228957]
[1729894084647,9.16228957,167.95,167.9,9.16228957]
[1729894084946,2.9824,167.93,167.91,9.16228957]
[1729894085242,2.9824,167.93,167.92,4.5]
[1729894092049,10.46968957,167.99,167.92,13.66228957]
[1729894092955,2.9823,167.94,167.92,13.66228957]
[1729894095145,2.9816,167.97,167.93,9.16228957]
[1729894095354,9.16228957,168.01,167.96,9.16228957]
[1729894095557,9.16228957,168.01,167.97,4.4]
[1729894095848,2.9814,167.99,167.97,13.56228957]
[1729894098653,9.16228957,168.01,167.97,4.4]
[1729894098954,3.8256,168.07,167.97,4.4]
[1729894098955,3.8256,168.07,167.97,13.56228957]
[1729894099154,9.16228957,168.02,167.97,13.56228957]
[1729894099346,2.9814,167.98,167.97,9.16228957]
[1729894099549,9.16228957,167.98,167.95,4.4]
[1729894100551,2.9818,167.96,167.95,4.4]
[1729894117765,12.14408957,167.96,167.95,4.4]
[1729894120475,2.9818,167.96,167.95,4.4]
[1729894121065,10.42008957,168.01,167.95,13.56228957]
[1729894121265,2.9817,167.97,167.96,9.16228957]
[1729894122066,9.16228957,168.04,167.96,9.16228957]
[1729894122270,9.16228957,168.04,167.98,9.16228957]
[1729894122566,9.16228957,168.04,167.99,4.4]
[1729894123370,2.9811,168.0,167.99,4.4]
[1729894123571,9.16228957,168.04,167.99,4.4]
[1729894123767,10.49798957,168.06,168.01,9.16228957]
[1729894124371,10.49798957,168.06,168.0,9.16228957]
[1729894124372,2.9809,168.02,168.0,9.16228957]
[1729894125966,2.9809,168.02,168.01,9.16228957]
[1729894126972,2.981,168.01,167.99,4.4]
[1729894127172,2.981,168.01,168.0,9.16228957]
[1729894127368,9.16228957,168.02,167.94,1.2067]
[1729894127569,2.9815,167.98,167.96,9.16228957]
[1729894128371,9.16228957,168.02,167.96,9.16228957]
[1729894128577,9.16228957,168.02,167.95,4.4]
[1729894128578,2.9813,167.99,167.98,9.16228957]
[1729894128766,2.9813,167.99,167.98,13.56228957]
[1729894130974,9.16228957,168.03,167.94,4.1887]
[1729894131178,2.9815,167.98,167.97,9.16228957]
[1729894131677,2.9818,167.96,167.95,4.4]
[1729894133867,2.9818,167.96,167.94,9.16228957]
[1729894134073,2.9818,167.96,167.95,4.4]
[1729894136368,2.9817,167.97,167.95,4.4]
[1729894136573,9.16228957,168.03,167.96,9.16228957]
[1729894136774,9.16228957,168.03,167.98,9.16228957]
[1729894136973,9.16228957,168.03,167.99,4.4]
[1729894138281,2.9811,168.0,167.99,4.4]
[1729894150790,2.9811,168.0,167.99,13.56228957]
[1729894154992,2.9809,168.02,167.99,13.56228957]
[1729894155187,2.9809,168.02,168.01,9.16228957]
[1729894156499,2.9811,168.0,167.99,4.4]
[1729894156799,2.9811,168.0,167.99,13.56228957]
[1729894160604,9.16228957,168.07,167.99,13.56228957]
[1729894160904,9.16228957,168.07,168.02,9.16228957]
[1729894161203,9.16228957,168.07,168.03,4.4]
[1729894161204,2.9804,168.04,168.03,4.4]
[1729894164213,2.9804,168.04,168.03,13.56228957]
[1729894164414,2.9804,168.04,168.03,4.4]
[1729894164814,2.9804,168.04,168.03,13.56228957]
[1729894170818,9.16228957,168.06,167.99,1.2782]
[1729894171121,2.9811,168.0,167.99,10.44048957]
[1729894171322,2.9811,168.0,167.99,14.84048957]
[1729894171522,2.9811,168.0,167.99,13.56228957]
[1729894175524,2.9808,168.02,167.99,16.54358957]
[1729894175720,2.9808,168.02,168.01,9.16228957]
[1729894175928,9.16228957,168.06,168.01,4.4]
[1729894176120,2.9807,168.02,168.01,4.4]
[1729894179429,2.9807,168.02,168.01,13.56228957]
[1729894183527,2.9807,168.02,168.01,4.4]
[1729894183728,2.9807,168.02,168.01,13.56228957]
[1729894187439,2.9807,168.02,168.01,4.4]
[1729894187639,2.9807,168.02,168.01,13.56228957]
[1729894203152,1.2108,168.1,168.01,13.56228957]
[1729894203341,2.9805,168.04,168.03,9.16228957]
[1729894203546,9.16228957,168.09,168.01,4.4]
[1729894203746,9.16228957,168.07,168.02,9.16228957]
[1729894204050,2.9805,168.03,168.02,9.16228957]
[1729894207352,3.01094359,168.04,167.97,4.38]
[1729894207551,9.16228957,168.01,167.97,4.38]
[1729894207754,9.16228957,168.01,167.94,9.16228957]
[1729894207755,2.982,167.95,167.94,9.16228957]
[1729894208057,2.982,167.95,167.94,13.54228957]
[1729894210458,2.982,167.95,167.94,4.38]
[1729894210658,2.982,167.95,167.94,5.87148156]
[1729894212555,2.982,167.95,167.94,4.38]
[1729894212756,2.982,167.95,167.94,5.87160673]
[1729894213558,2.982,167.95,167.94,4.38]
[1729894218868,9.16228957,167.98,167.92,57.92]
[1729894219069,2.9823,167.93,167.92,57.92]
[1729894219261,2.9823,167.93,167.92,62.3]
[1729894224181,2.9823,167.93,167.92,4.38]
[1729894248002,9.16228957,167.94,167.88,9.16228957]
[1729894248204,2.9829,167.9,167.89,4.38]
[1729894249212,2.9828,167.91,167.89,4.38]
[1729894249500,9.16228957,167.92,167.89,4.38]
[1729894250202,2.983,167.9,167.86,13.42458957]
[1729894250401,2.983,167.9,167.87,4.38]
[1729894254906,5.9628,167.99,167.87,4.38]
[1729894255205,2.9829,167.9,167.87,7.3633]
[1729894257411,2.9829,167.9,167.87,4.38]
[1729894259415,2.9829,167.9,167.86,13.42458957]
[1729894259705,2.9829,167.9,167.87,4.38]
[1729894270409,2.5574,168.02,167.89,9.16228957]
[1729894270614,2.9821,167.95,167.92,9.16228957]
[1729894270923,2.9821,167.95,167.93,4.38]
[1729894279519,2.5574,168.02,167.94,9.16228957]
[1729894279714,2.9817,167.97,167.95,9.16228957]
[1729894280626,9.16228957,168.02,167.96,12.14398957]
[1729894280821,9.16228957,168.02,167.97,4.38]
[1729894281329,9.16228957,168.02,167.98,9.16228957]
[1729894281826,2.9812,168.0,167.98,9.16228957]
[1729894282926,1.2054,168.06,167.98,9.16228957]
[1729894283222,9.16228957,168.04,167.98,9.16228957]
[1729894284222,2.9811,168.0,167.98,9.16228957]
[1729894286023,9.16228957,168.04,167.98,12.14358957]
[1729894286220,9.16228957,168.04,167.99,9.16228957]
[1729894287431,2.9809,168.01,167.99,9.16228957]
[1729894289337,2.9814,167.99,167.97,4.38]
[1729894289633,9.16228957,168.01,167.97,4.38]
[1729894289935,2.9814,167.99,167.97,4.38]
[1729894290431,1.2054,168.06,167.97,4.38]
[1729894290432,1.2054,168.06,167.98,9.16228957]
[1729894290640,2.981,168.01,167.99,9.16228957]
[1729894293836,2.981,168.01,168.0,4.38]
[1729894294436,12.14328957,168.01,168.0,4.38]
[1729894300736,9.16228957,168.01,167.96,12.14398957]
[1729894300935,2.9813,167.99,167.97,4.38]
[1729894302945,9.16228957,168.0,167.98,4.38]
[1729894303347,9.16228957,168.0,167.93,1.3013]
[1729894303348,2.9821,167.95,167.93,9.16228957]
[1729894303550,2.9821,167.95,167.94,4.38]
[1729894304449,9.16228957,167.95,167.85,1.2802]
[1729894304745,9.16228957,167.93,167.92,4.38]
[1729894305339,12.14458957,167.93,167.92,4.38]
[1729894305547,9.16228957,167.93,167.85,2.5802]
[1729894305850,9.16228957,167.91,167.9,4.38]
[1729894306157,2.9831,167.89,167.86,9.16228957]
[1729894306349,9.16228957,167.89,167.84,9.16228957]
[1729894306540,9.16228957,167.86,167.84,4.38]
[1729894307139,2.9837,167.85,167.84,4.38]
[1729894307444,9.16228957,167.86,167.84,4.38]
[1729894308056,2.9836,167.86,167.84,4.38]
[1729894309249,12.14588957,167.86,167.84,4.38]
[1729894310255,2.984,167.84,167.8,12.14688957]
[1729894310456,2.984,167.84,167.81,4.38]
[1729894310647,9.16228957,167.85,167.81,4.38]
[1729894310844,9.16228957,167.85,167.79,9.16228957]
[1729894311050,9.16228957,167.85,167.8,4.38]
[1729894312142,2.984,167.84,167.81,4.38]
[1729894312348,12.14628957,167.84,167.81,4.38]
[1729894315455,2.984,167.84,167.81,4.38]
[1729894315849,12.14618957,167.85,167.81,13.54228957]
[1729894316054,9.16228957,167.85,167.81,13.54228957]
[1729894316361,9.16228957,167.85,167.81,4.38]
[1729894316560,9.16228957,167.84,167.81,4.38]
[1729894317351,2.9841,167.83,167.81,4.38]
[1729894324071,1.2543,167.9,167.81,4.38]
[1729894324278,9.16228957,167.82,167.77,1.2358]
[1729894324565,9.16228957,167.82,167.79,4.38]
[1729894324761,12.14658957,167.82,167.79,4.38]
[1729894324958,9.16228957,167.82,167.79,4.38]
[1729894325471,2.9846,167.81,167.79,4.38]
[1729894325666,2.9846,167.81,167.78,4.38]
[1729894328162,2.9846,167.81,167.77,4.2209]
[1729894328373,9.16228957,167.78,167.73,2.9857]
[1729894328578,9.16228957,167.78,167.74,4.38]
[1729894328967,4.38,167.88,167.74,4.38]
[1729894328968,12.14748957,167.77,167.74,4.38]
[1729894330263,12.14748957,167.77,167.74,7.3657]
[1729894330669,12.14748957,167.77,167.74,4.38]
[1729894331472,12.14748957,167.77,167.73,12.14798957]
[1729894331774,12.14748957,167.77,167.74,4.38]
[1729894334271,12.14748957,167.77,167.74,7.3657]
[1729894334874,12.14778957,167.75,167.74,4.38]
[1729894337073,2.9855,167.75,167.74,4.38]
[1729894337381,9.16228957,167.75,167.67,1.2419]
[1729894337675,9.16228957,167.7,167.68,4.38]
[1729894338471,12.14878957,167.7,167.68,4.38]
[1729894338671,9.16228957,167.71,167.68,4.38]
[1729894338873,9.16228957,167.71,167.67,4.2287]
[1729894339174,9.16228957,167.71,167.68,4.38]
[1729894339175,2.9864,167.7,167.68,4.38]
[1729894340673,4.38,167.8,167.68,4.38]
[1729894340872,9.16228957,167.71,167.68,4.38]
[1729894341282,9.16228957,167.71,167.68,7.3667]
[1729894341673,9.16228957,167.7,167.68,4.38]
[1729894343378,4.38,167.8,167.59,1.3354]
[1729894343379,9.16228957,167.69,167.59,1.3354]
[1729894343582,9.16228957,167.69,167.66,4.38]
[1729894344673,2.9868,167.68,167.65,4.38]
[1729894345073,2.9868,167.68,167.59,1.3354]
[1729894345074,1.2885,167.74,167.53,2.99453268]
[1729894345273,9.16228957,167.64,167.61,2.9879]
[1729894345575,9.16228957,167.64,167.61,7.3679]
[1729894345881,9.16228957,167.64,167.62,2.9878]
[1729894346178,9.16228957,167.63,167.61,4.38]
[1729894346384,9.16228957,167.62,167.58,4.38]
[1729894346575,2.9882,167.61,167.58,4.38]
[1729894346984,9.16228957,167.6,167.58,4.38]
[1729894347281,12.15048957,167.6,167.58,4.38]
[1729894347475,9.16228957,167.6,167.58,4.38]
[1729894347782,9.16228957,167.62,167.58,13.54228957]
[1729894348582,12.14988957,167.64,167.59,9.16228957]
[1729894348977,12.15028957,167.61,167.59,4.38]
[1729894350481,3.8338,167.68,167.59,7.3682]
[1729894350482,2.9873,167.66,167.59,7.3682]
[1729894350686,9.16228957,167.64,167.59,13.54228957]
[1729894352085,12.14988957,167.64,167.59,16.53058957]
[1729894354983,9.16228957,167.63,167.59,4.38]
[1729894355182,3.8338,167.68,167.58,1.2212]
[1729894355384,12.15058957,167.6,167.59,4.38]
[1729894357082,12.15028957,167.61,167.59,4.38]
[1729894358088,9.16228957,167.61,167.59,4.38]
[1729894358293,12.15038957,167.61,167.59,4.38]
[1729894358986,2.9882,167.6,167.59,4.38]
[1729894359187,12.15048957,167.6,167.59,4.38]
[1729894360391,9.16228957,167.6,167.36,3.04602302]
[1729894360590,2.9897,167.52,167.5,4.38]
[1729894360892,9.16228957,167.53,167.49,4.38]
[1729894361099,1.3277,167.59,167.49,4.38]
[1729894361299,9.16228957,167.53,167.49,4.38]
[1729894362200,12.15188957,167.53,167.49,4.38]
[1729894362887,9.16228957,167.53,167.47,2.9905]
[1729894363092,12.15208957,167.51,167.5,4.38]
[1729894366094,12.15208957,167.51,167.45,2.9909]
[1729894366095,9.16228957,167.51,167.45,2.9909]
[1729894366307,9.16228957,167.49,167.46,4.38]
[1729894367199,12.15258957,167.49,167.44,2.9911]
[1729894367400,12.15258957,167.49,167.47,4.38]
[1729894370096,2.9907,167.46,167.41,2.9915]
[1729894370306,12.15298957,167.46,167.42,4.38]
[1729894370607,9.16228957,167.46,167.43,4.38]
[1729894370806,2.991,167.45,167.43,4.38]
[1729894371815,12.15298957,167.46,167.43,4.38]
[1729894372313,9.16228957,167.44,167.43,4.38]
[1729894374008,9.16228957,167.44,167.42,4.38]
[1729894374406,9.16228957,167.44,167.4,3.8655]
[1729894374610,12.15338957,167.44,167.41,4.38]
[1729894376014,9.16228957,167.43,167.41,4.38]
[1729894377811,9.16228957,167.43,167.36,1.2206]
[1729894377812,9.16228957,167.42,167.36,1.2206]
[1729894378007,9.16228957,167.4,167.37,4.38]
[1729894378313,9.16228957,167.39,167.37,4.38]
[1729894379209,2.9916,167.42,167.37,7.3722]
[1729894379517,9.16228957,167.41,167.37,13.54228957]
[1729894379712,9.16228957,167.41,167.38,2.992]
[1729894380212,2.9909,167.45,167.41,2.9916]
[1729894380401,9.16228957,167.44,167.41,4.38]
[1729894381014,9.16228957,167.45,167.41,4.38]
[1729894381798,9.16228957,167.45,167.41,7.3716]
[1729894384318,12.15328957,167.45,167.41,7.3716]
[1729894386913,12.15318957,167.45,167.41,7.3716]
[1729894387116,9.16228957,167.48,167.42,9.16228957]
[1729894388314,9.16228957,167.48,167.45,2.9909]
[1729894388619,9.16228957,167.48,167.45,7.3709]
[1729894388911,2.9902,167.49,167.45,7.3709]
[1729894388912,9.16228957,167.49,167.45,7.3709]
[1729894389316,9.16228957,167.49,167.45,13.54228957]
[1729894389520,9.16228957,167.51,167.46,9.16228957]